fUSD/lending_fUSD_20260331
["ID","MTS","AMOUNT","RATE_DAILY","PERIOD"]
[419170124,1774999834773,-180.25856014,0.00010596,2]
[419170125,1774999834787,-478.54404277,0.00010596,2]
[419170126,1774999834801,-542.72298702,0.00010596,2]
[419170127,1774999834815,-500.0,0.00010596,2]
[419170128,1774999834829,-195.35161709,0.00010596,2]
[419170129,1774999834843,-298.87,0.00010596,2]
[419170130,1774999834857,-92660.68576489,0.00010597,2]
[419170131,1774999834878,-19802.62975863,0.00010597,2]
[419170132,1774999834895,-9422.70210983,0.00010597,2]
[419170133,1774999834938,-404.30213,0.00010597,2]
[419170134,1774999834956,-2072.84178342,0.00010597,2]
[419170135,1774999835116,-1424.51542341,0.00010597,2]
[419170136,1774999835134,-85260.0,0.00010597,2]
[419170137,1774999835179,-665.72995843,0.00010597,2]
[419170138,1774999835196,-275.75,0.00010597,2]
[419170139,1774999839816,-254.18043806,0.00010597,2]
[419170140,1774999839831,-10189.4671411,0.00010597,2]
[419170141,1774999839855,-505.0,0.00010597,2]
[419170158,1774999840303,-219046.85032989,0.00010597,2]
[419170173,1774999840444,-1358.36788851,0.00010597,2]
[419170174,1774999840455,-2056656.97727383,0.00010597,2]
[419170175,1774999840465,-507.82732743,0.00010659,2]
[419170177,1774999840474,-500.0,0.0001087,2]
[419170179,1774999840483,-298.87,0.0001087,2]
[419170181,1774999840493,-4179.08757266,0.000109,2]
[419170183,1774999840503,-1553.0,0.00010904,2]
[419170185,1774999840512,-924.0,0.00010908,2]
[419170187,1774999840521,-1314.0,0.00010926,2]
[419170189,1774999840531,-1080.0,0.00010947,2]
[419170191,1774999840542,-500.0,0.00010959,2]
[419170193,1774999840552,-174.54957298,0.00010959,2]
[419170195,1774999840562,-189.44000496,0.00010959,2]
[419170197,1774999840571,-34259.20608957,0.00011099,2]
[419170199,1774999840580,-1090.16248893,0.00011121,2]
[419170201,1774999840589,-1000.0,0.00011121,2]
[419170203,1774999840599,-1000.0,0.00011121,2]
[419170205,1774999840608,-1000.0,0.00011121,2]
[419170207,1774999840617,-500.0,0.00011121,2]
[419170209,1774999840627,-1000.0,0.00011121,2]
[419170211,1774999840637,-1000.0,0.00011121,2]
[419170213,1774999840647,-200.0,0.00011139,2]
[419170215,1774999840657,-1243.57659104,0.00011139,2]
[419170217,1774999840667,-298.88,0.00011144,2]
[419170219,1774999840676,-34259.20608954,0.00011152,2]
[419170221,1774999840686,-181.0,0.00011332,2]
[419170223,1774999840696,-1418.0,0.00011335,2]
[419170225,1774999840706,-420.0,0.00011349,2]
[419170227,1774999840717,-1680.0,0.00011353,2]
[419170229,1774999840727,-300.0,0.00011353,2]
[419170232,1774999840737,-600.0,0.00011354,2]
[419170234,1774999840747,-708.33507109,0.00011354,2]
[419170236,1774999840756,-1643.0,0.00011357,2]
[419170238,1774999840765,-2000.0,0.00011433,2]
[419170240,1774999840774,-202.91,0.00011458,2]
[419170242,1774999840784,-150.0,0.000116,2]
[419170244,1774999840794,-224.32485354,0.00011646,2]
[419170246,1774999840803,-1500.0,0.00011668,2]
[419170248,1774999840812,-1500.0,0.00011668,2]
[419170250,1774999840822,-501.58195524,0.00011668,2]
[419170252,1774999840831,-1500.0,0.00011668,2]
[419170254,1774999840841,-200.0,0.00011687,2]
[419170256,1774999840850,-1289.58892491,0.00011687,2]
[419170258,1774999840860,-34259.20608954,0.00011746,2]
[419170260,1774999840870,-383.57,0.0001207,2]
[419170262,1774999840880,-1500.0,0.00012216,2]
[419170264,1774999840889,-2000.0,0.00012216,2]
[419170266,1774999840899,-2000.0,0.00012216,2]
[419170267,1774999840909,-177.01,0.00012217,2]
[419170269,1774999840919,-200.0,0.00012235,2]
[419170271,1774999840928,-1337.30371513,0.00012235,2]
[419170273,1774999840938,-34259.20608954,0.00012339,2]
[419170275,1774999840947,-587.0,0.0001248,2]
[419170277,1774999840957,-2351.0,0.00012488,2]
[419170279,1774999840968,-2000.0,0.00012703,2]
[419170281,1774999840978,-2500.0,0.00012764,2]
[419170283,1774999840987,-2500.0,0.00012764,2]
[419170285,1774999840997,-200.0,0.00012783,2]
[419170287,1774999841007,-1386.78395259,0.00012783,2]
[419170289,1774999841017,-34259.20608954,0.00012933,2]
[419170291,1774999841026,-194.2135,0.00013,7]
[419170293,1774999841037,-250.0,0.00013,2]
[419170295,1774999841047,-502.0,0.00013111,2]
[419170296,1774999841058,-367.95378658,0.00013199,2]
[419170297,1774999841067,-700.7886617,0.00013312,2]
[419170298,1774999841078,-501.46003451,0.00013312,2]
[419170299,1774999841088,-151.0,0.0001333,2]
[419170300,1774999841098,-200.0,0.00013331,2]
[419170301,1774999841107,-1438.09495884,0.00013331,2]
[419170302,1774999841117,-500.0,0.00013398,2]
[419170303,1774999841127,-500.0,0.00013398,3]
[419170304,1774999841137,-500.0,0.00013398,4]
[419170305,1774999841147,-500.0,0.00013398,5]
[419170306,1774999841156,-500.0,0.00013398,6]
[419170307,1774999841166,-500.0,0.00013398,7]
[419170308,1774999841175,-500.0,0.00013398,8]
[419170309,1774999841185,-500.0,0.00013398,9]
[419170310,1774999841194,-352.585616,0.00013424,2]
[419170312,1774999841204,-3240.0,0.00013425,2]
[419170314,1774999841214,-34259.20608954,0.00013526,2]
[419170316,1774999841224,-250.0,0.00013639,2]
[419170317,1774999841234,-500.0,0.00013698,2]
[419170320,1774999841243,-500.0,0.00013698,2]
[419170321,1774999841253,-500.0,0.00013698,2]
[419170323,1774999841263,-500.0,0.00013698,2]
[419170325,1774999841272,-500.0,0.00013698,2]
[419170328,1774999841282,-500.0,0.00013698,2]
[419170330,1774999841292,-500.0,0.00013698,2]
[419170332,1774999841301,-500.0,0.00013698,2]
[419170333,1774999841310,-500.0,0.00013698,2]
[419170335,1774999841320,-500.0,0.00013698,2]
[419170336,1774999841330,-500.0,0.00013698,2]
[419170337,1774999841340,-500.0,0.00013698,2]
[419170338,1774999841350,-500.0,0.00013698,2]
[419170339,1774999841359,-500.0,0.00013698,2]
[419170340,1774999841369,-500.0,0.00013698,2]
[419170341,1774999841379,-500.0,0.00013698,2]
[419170342,1774999841389,-500.0,0.00013698,2]
[419170343,1774999841398,-500.0,0.00013698,2]
[419170344,1774999841408,-500.0,0.00013698,2]
[419170345,1774999841418,-500.0,0.00013698,2]
[419170346,1774999841427,-500.0,0.00013698,2]
[419170347,1774999841437,-500.0,0.00013698,2]
[419170348,1774999841446,-500.0,0.00013698,2]
[419170349,1774999841456,-500.0,0.00013698,2]
[419170350,1774999841466,-500.0,0.00013698,2]
[419170351,1774999841475,-573.16,0.00013698,2]
[419170352,1774999841485,-500.0,0.00013698,2]
[419170353,1774999841494,-500.0,0.00013698,2]
[419170354,1774999841506,-500.0,0.00013698,2]
[419170355,1774999841516,-500.0,0.00013698,2]
[419170356,1774999841525,-500.0,0.00013698,2]
[419170357,1774999841535,-500.0,0.00013698,2]
[419170358,1774999841544,-500.0,0.00013698,2]
[419170359,1774999841555,-500.0,0.00013698,2]
[419170360,1774999841564,-500.0,0.00013698,2]
[419170361,1774999841574,-500.0,0.00013698,2]
[419170362,1774999841584,-500.0,0.00013698,2]
[419170363,1774999841594,-500.0,0.00013698,2]
[419170364,1774999841604,-500.0,0.00013698,2]
[419170365,1774999841613,-601.13,0.00013698,2]
[419170366,1774999841623,-500.0,0.00013698,2]
[419170367,1774999841633,-500.0,0.00013698,2]
[419170368,1774999841642,-500.0,0.00013698,2]
[419170369,1774999841652,-500.0,0.00013698,2]
[419170370,1774999841661,-500.0,0.00013698,2]
[419170371,1774999841671,-500.0,0.00013698,2]
[419170372,1774999841681,-500.0,0.00013698,2]
[419170373,1774999841691,-500.0,0.00013698,2]
[419170374,1774999841700,-500.0,0.00013698,2]
[419170375,1774999841710,-500.0,0.00013698,2]
[419170376,1774999841720,-500.0,0.00013698,2]
[419170377,1774999841729,-500.0,0.00013698,2]
[419170378,1774999841739,-500.0,0.00013698,2]
[419170379,1774999841749,-332.17600438,0.00013698,2]
[419170380,1774999841759,-500.0,0.00013698,2]
[419170381,1774999841769,-500.0,0.00013698,2]
[419170382,1774999841778,-500.0,0.00013698,2]
[419170383,1774999841788,-500.0,0.00013698,2]
[419170384,1774999841798,-500.0,0.00013698,2]
[419170385,1774999841808,-500.0,0.00013698,2]
[419170386,1774999841818,-500.0,0.00013698,2]
[419170387,1774999841827,-500.0,0.00013698,2]
[419170388,1774999841837,-500.0,0.00013698,2]
[419170389,1774999841847,-500.0,0.00013698,2]
[419170390,1774999841856,-600.87743374,0.00013698,2]
[419170391,1774999841866,-500.0,0.00013698,2]
[419170392,1774999841876,-500.0,0.00013698,2]
[419170393,1774999841885,-500.0,0.00013698,2]
[419170394,1774999841895,-500.0,0.00013698,2]
[419170395,1774999841904,-500.0,0.00013698,2]
[419170396,1774999841914,-500.0,0.00013698,2]
[419170397,1774999841924,-500.0,0.00013698,2]
[419170398,1774999841933,-500.0,0.00013698,2]
[419170399,1774999841943,-500.0,0.00013698,2]
[419170400,1774999841952,-500.0,0.00013698,2]
[419170401,1774999841962,-500.0,0.00013698,2]
[419170402,1774999841972,-500.0,0.00013698,2]
[419170403,1774999841981,-500.0,0.00013698,2]
[419170404,1774999841991,-500.0,0.00013698,2]
[419170405,1774999842001,-500.0,0.00013698,2]
[419170406,1774999842011,-500.0,0.00013698,2]
[419170407,1774999842020,-500.0,0.00013698,2]
[419170408,1774999842030,-500.0,0.00013698,2]
[419170409,1774999842040,-500.0,0.00013698,2]
[419170410,1774999842050,-500.0,0.00013698,2]
[419170411,1774999842060,-500.0,0.00013698,2]
[419170412,1774999842069,-500.0,0.00013698,2]
[419170413,1774999842079,-500.0,0.00013698,2]
[419170414,1774999842089,-500.0,0.00013698,2]
[419170415,1774999842099,-500.0,0.00013698,2]
[419170416,1774999842108,-500.0,0.00013698,2]
[419170417,1774999842117,-500.0,0.00013698,2]
[419170418,1774999842127,-500.0,0.00013698,2]
[419170419,1774999842136,-500.0,0.00013698,2]
[419170420,1774999842146,-500.0,0.00013698,2]
[419170421,1774999842156,-590.46,0.00013698,2]
[419170422,1774999842166,-500.0,0.00013698,2]
[419170423,1774999842175,-500.0,0.00013698,2]
[419170424,1774999842185,-500.0,0.00013698,2]
[419170425,1774999842195,-500.0,0.00013698,2]
[419170426,1774999842204,-500.0,0.00013698,2]
[419170427,1774999842214,-500.0,0.00013698,2]
[419170428,1774999842223,-500.0,0.00013698,2]
[419170429,1774999842233,-500.0,0.00013698,2]
[419170430,1774999842243,-500.0,0.00013698,2]
[419170431,1774999842252,-500.0,0.00013698,2]
[419170432,1774999842262,-566.97722897,0.00013698,2]
[419170433,1774999842271,-500.0,0.00013698,2]
[419170434,1774999842280,-539.79,0.00013698,2]
[419170435,1774999842290,-500.0,0.00013698,2]
[419170436,1774999842299,-500.0,0.00013698,2]
[419170437,1774999842309,-500.0,0.00013698,2]
[419170438,1774999842319,-500.0,0.00013698,2]
[419170439,1774999842328,-500.0,0.00013698,2]
[419170440,1774999842338,-500.0,0.00013698,2]
[419170441,1774999842348,-500.0,0.00013698,2]
[419170442,1774999842357,-500.0,0.00013698,2]
[419170443,1774999842367,-500.0,0.00013698,2]
[419170444,1774999842376,-500.0,0.00013698,2]
[419170445,1774999842386,-500.0,0.00013698,2]
[419170446,1774999842396,-500.0,0.00013698,2]
[419170447,1774999842405,-500.0,0.00013698,2]
[419170448,1774999842414,-500.0,0.00013698,2]
[419170449,1774999842424,-212.34445911,0.00013698,2]
[419170450,1774999842433,-500.0,0.00013698,2]
[419170451,1774999842443,-500.0,0.00013698,2]
[419170452,1774999842452,-500.0,0.00013698,2]
[419170453,1774999842462,-500.0,0.00013698,2]
[419170454,1774999842471,-500.0,0.00013698,2]
[419170455,1774999842480,-500.0,0.00013698,2]
[419170456,1774999842490,-500.0,0.00013698,2]
[419170457,1774999842499,-500.0,0.00013698,2]
[419170458,1774999842508,-500.0,0.00013698,2]
[419170459,1774999842516,-500.0,0.00013698,2]
[419170460,1774999842526,-500.0,0.00013698,2]
[419170461,1774999842535,-500.0,0.00013698,2]
[419170462,1774999842544,-502.62451474,0.00013698,2]
[419170463,1774999842554,-500.0,0.00013698,2]
[419170464,1774999842563,-500.0,0.00013698,2]
[419170465,1774999842572,-500.0,0.00013698,2]
[419170467,1774999842581,-500.0,0.00013698,2]
[419170469,1774999842591,-500.0,0.00013698,2]
[419170470,1774999842599,-500.0,0.00013698,2]
[419170471,1774999842609,-500.0,0.00013698,2]
[419170472,1774999842618,-500.0,0.00013698,2]
[419170473,1774999842627,-500.0,0.00013698,2]
[419170474,1774999842636,-420.74775151,0.00013698,2]
[419170475,1774999842645,-500.0,0.00013698,2]
[419170476,1774999842654,-500.0,0.00013698,2]
[419170477,1774999842663,-500.0,0.00013698,2]
[419170479,1774999842672,-500.0,0.00013698,2]
[419170481,1774999842681,-500.0,0.00013698,2]
[419170483,1774999842691,-500.0,0.00013698,2]
[419170485,1774999842701,-500.0,0.00013698,2]
[419170487,1774999842710,-500.0,0.00013698,2]
[419170488,1774999842719,-500.0,0.00013698,2]
[419170489,1774999842728,-500.0,0.00013698,2]
[419170490,1774999842737,-500.0,0.00013698,2]
[419170491,1774999842746,-500.0,0.00013698,2]
[419170492,1774999842755,-500.0,0.00013698,2]
[419170493,1774999842764,-500.0,0.00013698,2]
[419170494,1774999842772,-500.0,0.00013698,2]
[419170495,1774999842783,-500.0,0.00013698,2]
[419170496,1774999842792,-500.0,0.00013698,2]
[419170497,1774999842800,-500.0,0.00013698,2]
[419170498,1774999842809,-500.0,0.00013698,2]
[419170499,1774999842819,-539.86096787,0.00013698,2]
[419170500,1774999842828,-500.0,0.00013698,2]
[419170502,1774999842837,-173.34235598,0.00013698,2]
[419170504,1774999842847,-500.0,0.00013698,2]
[419170506,1774999842856,-500.0,0.00013698,2]
[419170507,1774999842865,-500.0,0.00013698,2]
[419170508,1774999842874,-500.0,0.00013698,2]
[419170509,1774999842883,-500.0,0.00013698,2]
[419170510,1774999842892,-500.0,0.00013698,2]
[419170520,1774999843186,-500.0,0.00013698,2]
[419170521,1774999843255,-500.0,0.00013698,2]
[419170522,1774999843265,-500.0,0.00013698,2]
[419170523,1774999843275,-500.0,0.00013698,2]
[419170524,1774999843284,-333.45,0.00013698,2]
[419170525,1774999843295,-500.0,0.00013698,2]
[419170526,1774999843305,-500.0,0.00013698,2]
[419170527,1774999843314,-500.0,0.00013698,2]
[419170528,1774999843324,-500.0,0.00013698,2]
[419170529,1774999843334,-500.0,0.00013698,2]
[419170530,1774999843344,-500.0,0.00013698,2]
[419170531,1774999843353,-500.0,0.00013698,2]
[419170532,1774999843363,-500.0,0.00013698,2]
[419170533,1774999843372,-150.0,0.00013699,2]
[419170534,1774999843382,-173.26,0.00013699,2]
[419170535,1774999843391,-158.44,0.00013699,2]
[419170536,1774999843401,-792.21,0.00013699,2]
[419170537,1774999843411,-500.0,0.00013699,2]
[419170538,1774999843421,-626.82483894,0.00013699,2]
[419170539,1774999843431,-500.0,0.00013699,2]
[419170540,1774999843440,-500.0,0.00013699,2]
[419170541,1774999843450,-500.0,0.00013699,2]
[419170542,1774999843460,-227.36412512,0.00013699,2]
[419170543,1774999843470,-500.0,0.00013699,2]
[419170544,1774999843480,-500.0,0.00013699,2]
[419170545,1774999843489,-500.0,0.00013699,2]
[419170546,1774999843499,-330.25769575,0.00013699,2]
[419170547,1774999843509,-500.0,0.00013699,2]
[419170548,1774999843519,-500.98440072,0.00013699,2]
[419170549,1774999843529,-500.0,0.00013699,2]
[419170550,1774999843539,-500.0,0.00013699,2]
[419170551,1774999843549,-500.0,0.00013699,2]
[419170552,1774999843558,-500.0,0.00013699,2]
[419170553,1774999843568,-500.0,0.00013699,2]
[419170554,1774999843577,-500.0,0.00013699,2]
[419170555,1774999843587,-500.0,0.00013699,2]
[419170556,1774999843596,-500.0,0.00013699,2]
[419170557,1774999843605,-500.0,0.00013699,2]
[419170558,1774999843615,-500.0,0.00013699,2]
[419170559,1774999843624,-500.0,0.00013699,2]
[419170560,1774999843633,-500.0,0.00013699,2]
[419170561,1774999843643,-342.8094935,0.00013699,2]
[419170562,1774999843652,-500.0,0.00013699,2]
[419170563,1774999843662,-500.0,0.00013699,2]
[419170564,1774999843671,-500.0,0.00013699,2]
[419170566,1774999843681,-500.0,0.00013699,2]
[419170568,1774999843690,-500.37169193,0.00013699,2]
[419170570,1774999843699,-500.0,0.00013699,2]
[419170572,1774999843708,-500.0,0.00013699,2]
[419170574,1774999843718,-500.0,0.00013699,2]
[419170576,1774999843727,-286.26486585,0.00013699,2]
[419170578,1774999843737,-500.0,0.00013699,2]
[419170580,1774999843746,-157.61,0.00013699,2]
[419170582,1774999843756,-394.65912229,0.00013699,2]
[419170584,1774999843765,-785.11,0.00013699,2]
[419170586,1774999843774,-823.0,0.00013724,2]
[419170587,1774999843783,-150.0,0.00013724,2]
[419170589,1774999843793,-2190.0,0.00013737,2]
[419170591,1774999843803,-4179.08757263,0.00013751,2]
[419170593,1774999843812,-398.709082,0.00013817,7]
[419170595,1774999843822,-199.611116,0.00013817,7]
[419170597,1774999843831,-379.367672,0.00013837,7]
[419170599,1774999843841,-200.0,0.00013879,2]
[419170601,1774999843850,-1491.30447232,0.00013879,2]
[419170603,1774999843860,-457.241414,0.00013962,7]
[419170604,1774999843869,-177.01,0.00013963,2]
[419170605,1774999843879,-150.0,0.00013973,2]
[419170606,1774999843888,-785.11,0.00013973,2]
[419170607,1774999843897,-2000.0,0.00013973,2]
[419170608,1774999843907,-28692.08909669,0.00014006,2]
[419170609,1774999843917,-502.0,0.0001408,2]
[419170610,1774999843926,-34259.20608954,0.0001412,2]
[419170611,1774999843936,-150.0,0.00014247,2]
[419170612,1774999843945,-1000.0,0.00014247,2]
[419170613,1774999843955,-1000.0,0.00014247,2]
[419170614,1774999843964,-1000.0,0.00014247,2]
[419170615,1774999843974,-1000.0,0.00014247,2]
[419170616,1774999843984,-685.01158904,0.00014247,2]
[419170617,1774999843994,-1000.0,0.00014247,2]
[419170618,1774999844003,-1000.0,0.00014247,2]
[419170619,1774999844013,-1000.0,0.00014247,2]
[419170620,1774999844022,-500.0,0.00014247,2]
[419170621,1774999844032,-1000.0,0.00014247,2]
[419170622,1774999844041,-500.0,0.00014247,2]
[419170623,1774999844050,-289.39131265,0.00014247,2]
[419170624,1774999844059,-785.11,0.00014247,2]
[419170625,1774999844069,-693.46778695,0.00014283,2]
[419170626,1774999844078,-251.4592,0.000144,12]
[419170627,1774999844088,-2808.0,0.000144,2]
[419170628,1774999844097,-200.0,0.00014427,2]
[419170629,1774999844107,-1546.48273779,0.00014427,2]
[419170630,1774999844116,-1117.7703,0.00014504,2]
[419170631,1774999844125,-500.0,0.00014504,2]
[419170632,1774999844135,-430.08000003,0.00014504,16]
[419170633,1774999844144,-500.0,0.00014504,2]
[419170634,1774999844153,-888.08,0.00014521,2]
[419170635,1774999844162,-173.26,0.00014612,2]
[419170636,1774999844172,-34259.20608954,0.00014713,2]
[419170637,1774999844181,-5792.22737392,0.00014739,2]
[419170638,1774999844190,-881.464041,0.00014766,7]
[419170639,1774999844199,-1000.0,0.00014768,2]
[419170640,1774999844209,-1000.0,0.00014768,2]
[419170641,1774999844218,-1000.0,0.00014768,2]
[419170642,1774999844227,-1000.0,0.00014768,2]
[419170643,1774999844236,-1000.0,0.00014768,2]
[419170644,1774999844246,-1000.0,0.00014768,2]
[419170645,1774999844255,-1000.0,0.00014768,2]
[419170646,1774999844264,-1000.0,0.00014768,2]
[419170647,1774999844274,-1000.0,0.00014768,2]
[419170648,1774999844284,-1000.0,0.00014768,2]
[419170649,1774999844294,-1000.0,0.00014768,2]
[419170650,1774999844303,-1000.0,0.00014768,2]
[419170651,1774999844313,-1000.0,0.00014768,2]
[419170652,1774999844322,-1000.0,0.00014768,2]
[419170653,1774999844335,-838.11,0.00014768,2]
[419170654,1774999844346,-800.0,0.00014782,2]
[419170655,1774999844356,-1400.0,0.00014782,2]
[419170656,1774999844365,-1500.0,0.00014795,2]
[419170657,1774999844376,-1471.18842002,0.00014795,2]
[419170658,1774999844387,-897.73186186,0.00014795,2]
[419170659,1774999844396,-1500.0,0.00014795,2]
[419170660,1774999844405,-1500.0,0.00014795,2]
[419170661,1774999844415,-500.0,0.00014795,2]
[419170662,1774999844427,-1485.11706189,0.00014795,2]
[419170663,1774999844437,-781.0056123,0.00014795,2]
[419170664,1774999844447,-160.0,0.0001487,2]
[419170665,1774999844455,-160.0,0.0001487,2]
[419170666,1774999844464,-229.16306875,0.000149,2]
[419170667,1774999844473,-229.16306875,0.000149,2]
[419170668,1774999844483,-229.16306875,0.000149,2]
[419170669,1774999844492,-684.0040152,0.00014967,2]
[419170670,1774999844502,-383.57,0.00014968,2]
[419170671,1774999844512,-30000.0,0.00014968,2]
[419170672,1774999844523,-200.0,0.00014975,2]
[419170673,1774999844534,-305.02472103,0.00014975,2]
[419170674,1774999844543,-666.0,0.00014999,2]
[419170675,1774999844552,-500.0,0.00015,2]
[419170676,1774999844561,-500.0,0.00015,2]
[419170677,1774999844570,-500.0,0.00015,2]
[419170678,1774999844579,-500.0,0.00015,2]
[419170679,1774999844588,-500.0,0.00015,2]
[419170680,1774999844596,-500.0,0.00015,2]
[419170681,1774999844606,-500.0,0.00015,2]
[419170682,1774999844615,-500.0,0.00015,2]
[419170683,1774999844624,-500.0,0.00015,2]
[419170684,1774999844633,-500.0,0.00015,2]
[419170685,1774999844643,-500.0,0.00015,2]
[419170686,1774999844652,-512.92,0.00015,2]
[419170687,1774999844661,-500.0,0.00015,2]
[419170688,1774999844670,-500.0,0.00015,2]
[419170689,1774999844679,-500.0,0.00015,2]
[419170690,1774999844688,-500.0,0.00015,2]
[419170691,1774999844697,-500.0,0.00015,2]
[419170692,1774999844706,-500.0,0.00015,2]
[419170693,1774999844716,-523.46,0.00015,2]
[419170694,1774999844724,-500.0,0.00015,2]
[419170695,1774999844734,-500.0,0.00015,2]
[419170696,1774999844743,-500.0,0.00015,2]
[419170697,1774999844752,-500.0,0.00015,2]
[419170698,1774999844761,-500.0,0.00015,2]
[419170699,1774999844770,-500.0,0.00015,2]
[419170700,1774999844779,-500.0,0.00015,2]
[419170701,1774999844788,-500.0,0.00015,2]
[419170702,1774999844796,-500.0,0.00015,2]
[419170703,1774999844806,-500.0,0.00015,2]
[419170704,1774999844815,-500.0,0.00015,2]
[419170705,1774999844824,-500.0,0.00015,2]
[419170706,1774999844833,-500.0,0.00015,2]
[419170707,1774999844842,-500.0,0.00015,2]
[419170708,1774999844851,-500.0,0.00015,2]
[419170709,1774999844860,-500.0,0.00015,2]
[419170710,1774999844869,-500.0,0.00015,2]
[419170711,1774999844878,-500.0,0.00015,2]
[419170712,1774999844887,-500.0,0.00015,2]
[419170713,1774999844896,-500.0,0.00015,2]
[419170714,1774999844905,-500.0,0.00015,2]
[419170715,1774999844915,-500.0,0.00015,2]
[419170716,1774999844923,-500.0,0.00015,2]
[419170717,1774999844934,-500.0,0.00015,2]
[419170718,1774999844943,-500.0,0.00015,2]
[419170719,1774999844952,-500.0,0.00015,2]
[419170720,1774999844961,-500.0,0.00015,2]
[419170721,1774999844970,-500.0,0.00015,2]
[419170722,1774999844979,-500.0,0.00015,2]
[419170723,1774999844987,-500.0,0.00015,2]
[419170724,1774999844996,-482.33,0.00015,2]
[419170725,1774999845006,-500.0,0.00015,2]
[419170726,1774999845015,-500.0,0.00015,2]
[419170727,1774999845024,-500.0,0.00015,2]
[419170728,1774999845034,-500.0,0.00015,2]
[419170729,1774999845042,-500.0,0.00015,2]
[419170730,1774999845051,-500.0,0.00015,2]
[419170731,1774999845061,-500.0,0.00015,2]
[419170732,1774999845070,-500.0,0.00015,2]
[419170733,1774999845079,-500.0,0.00015,2]
[419170734,1774999845088,-500.0,0.00015,2]
[419170735,1774999845098,-500.0,0.00015,2]
[419170736,1774999845106,-500.0,0.00015,2]
[419170737,1774999845116,-500.0,0.00015,2]
[419170738,1774999845125,-500.0,0.00015,2]
[419170739,1774999845134,-500.0,0.00015,2]
[419170740,1774999845143,-500.0,0.00015,2]
[419170741,1774999845152,-500.0,0.00015,2]
[419170742,1774999845162,-500.0,0.00015,2]
[419170743,1774999845171,-544.25,0.00015,2]
[419170744,1774999845181,-500.0,0.00015,2]
[419170745,1774999845190,-300.0,0.00015,2]
[419170746,1774999845199,-2807.0,0.0001504,2]
[419170747,1774999845208,-502.0,0.0001505,3]
[419170748,1774999845218,-881.0,0.00015068,2]
[419170749,1774999845228,-1152.0,0.00015091,2]
[419170750,1774999845238,-168.473324,0.00015199,7]
[419170751,1774999845247,-578.20924308,0.00015199,2]
[419170752,1774999845256,-1235.18214925,0.00015199,2]
[419170753,1774999845265,-181.08010149,0.00015199,2]
[419170754,1774999845275,-500.0,0.00015199,2]
[419170755,1774999845284,-500.0,0.00015199,2]
[419170756,1774999845293,-500.0,0.00015199,2]
[419170757,1774999845302,-500.0,0.00015199,2]
[419170758,1774999845311,-500.0,0.00015199,2]
[419170759,1774999845321,-500.0,0.00015199,2]
[419170760,1774999845330,-151.0,0.00015199,2]
[419170761,1774999845340,-500.0,0.00015199,2]
[419170762,1774999845349,-151.0,0.00015199,2]
[419170763,1774999845358,-500.0,0.00015199,2]